bitfinex/quotes_BTCUSD_20250110
["timestamp","ask_amount","ask_price","bid_price","bid_amount"]
[1736488639546,0.212497,94119.0,94118.0,0.00751952]
[1736488639746,0.212497,94119.0,94118.0,0.002]
[1736488639959,0.212497,94119.0,94118.0,0.00752377]
[1736488640164,0.212497,94119.0,94113.0,0.3226]
[1736488640358,0.212497,94119.0,94118.0,0.00552423]
[1736488640650,0.212497,94119.0,94118.0,0.002]
[1736488640881,0.212497,94119.0,94118.0,0.00752423]
[1736488642546,0.212497,94119.0,94118.0,0.002]
[1736488643251,0.212497,94119.0,94113.0,0.3226]
[1736488643663,0.212497,94119.0,94118.0,0.002]
[1736488644272,0.212485,94124.0,94118.0,0.002]
[1736488644488,0.212485,94124.0,94119.0,0.1224]
[1736488644937,0.212485,94124.0,94120.0,0.00552396]
[1736488646235,0.424971,94124.0,94120.0,0.00552396]
[1736488648909,4.868e-05,94131.0,94121.0,0.10429976]
[1736488649387,0.15004868,94131.0,94122.0,0.00552264]
[1736488649644,0.15004868,94131.0,94123.0,0.10429976]
[1736488650047,0.15004868,94131.0,94124.0,0.00552131]
[1736488651321,4.868e-05,94131.0,94124.0,0.00852131]
[1736488651748,4.868e-05,94131.0,94125.0,0.04824301]
[1736488651952,4.868e-05,94131.0,94124.0,0.00852131]
[1736488652153,4.868e-05,94131.0,94126.0,0.00548715]
[1736488652354,4.868e-05,94131.0,94127.0,0.10429976]
[1736488652671,4.868e-05,94131.0,94128.0,0.0784]
[1736488652910,4.868e-05,94131.0,94129.0,0.00548517]
[1736488654063,4.868e-05,94131.0,94129.0,0.00848517]
[1736488654957,4.868e-05,94131.0,94130.0,0.0477]
[1736488655472,4.868e-05,94131.0,94130.0,0.05318451]
[1736488656689,4.868e-05,94131.0,94130.0,0.00848451]
[1736488656885,0.21251768,94131.0,94130.0,0.00848451]
[1736488658047,4.868e-05,94131.0,94130.0,0.00848451]
[1736488659267,0.21251768,94131.0,94130.0,0.00848451]
[1736488659711,0.21251768,94131.0,94130.0,0.003]
[1736488664063,0.21251768,94131.0,94121.0,0.3689]
[1736488664276,0.21251768,94131.0,94122.0,0.10978493]
[1736488664968,0.212474,94129.0,94122.0,0.10978493]
[1736488665422,0.20909566,94129.0,94122.0,0.10978493]
[1736488665861,0.212472,94130.0,94122.0,0.10978493]
[1736488666141,4.868e-05,94131.0,94122.0,0.10978493]
[1736488666702,4.868e-05,94131.0,94122.0,0.11178493]
[1736488667115,0.424966,94125.0,94122.0,0.00548517]
[1736488667339,0.424966,94125.0,94122.0,0.00748517]
[1736488667630,0.424966,94125.0,94121.0,0.3226]
[1736488667863,0.424966,94125.0,94122.0,0.001]
[1736488668826,0.15,94124.0,94122.0,0.001]
[1736488669037,0.38388706,94123.0,94122.0,0.001]
[1736488669855,0.15,94122.0,94121.0,0.3226]
[1736488670691,0.21251,94113.0,94112.0,0.3226]
[1736488670877,0.21251,94113.0,94112.0,0.42689976]
[1736488671134,0.212503,94117.0,94112.0,0.43240178]
[1736488671355,0.425006,94117.0,94112.0,0.32810202]
[1736488672210,0.42501,94115.0,94112.0,0.00650202]
[1736488672694,0.212505,94115.0,94104.0,0.3226]
[1736488672954,0.212518,94110.0,94109.0,0.00550401]
[1736488674230,0.212518,94110.0,94109.0,0.00750401]
[1736488676725,0.441118,94110.0,94109.0,0.00750401]
[1736488677179,0.441118,94110.0,94109.0,0.002]
[1736488677694,0.15,94109.0,94098.0,0.3226]
[1736488682790,0.15,94109.0,94097.0,8.53e-05]
[1736488683674,0.30174441,94110.0,94086.0,0.3128559]
[1736488683675,0.08922641,94110.0,94086.0,0.3128559]
[1736488683932,0.212548,94097.0,94086.0,0.41715566]
[1736488684169,0.212548,94097.0,94087.0,0.00551857]
[1736488684687,0.21254,94100.0,94087.0,0.00551857]
[1736488685294,0.21258865,94100.0,94087.0,0.00551857]
[1736488685737,0.21258865,94100.0,94087.0,0.00651857]
[1736488686184,0.21258865,94100.0,94087.0,0.00551857]
[1736488686411,4.865e-05,94100.0,94088.0,0.10429976]
[1736488686691,4.865e-05,94100.0,94089.0,0.0824]
[1736488686882,4.865e-05,94100.0,94090.0,0.10429976]
[1736488687330,4.865e-05,94100.0,94091.0,0.00559208]
[1736488689044,0.01044743,94100.0,94091.0,0.00559208]
[1736488689300,4.865e-05,94100.0,94091.0,0.00559208]
[1736488690256,4.865e-05,94100.0,94091.0,0.00759208]
[1736488690739,4.865e-05,94100.0,94091.0,0.00559208]
[1736488690952,4.865e-05,94100.0,94091.0,0.00759208]
[1736488692057,4.865e-05,94100.0,94091.0,0.00859208]
[1736488693235,4.865e-05,94100.0,94091.0,0.00659208]
[1736488693702,4.865e-05,94100.0,94091.0,0.01059208]
[1736488693907,4.865e-05,94100.0,94091.0,0.00559208]
[1736488694157,4.865e-05,94100.0,94091.0,0.00659208]
[1736488694358,0.21258965,94100.0,94091.0,0.01159208]
[1736488694603,0.21258965,94100.0,94091.0,0.01059208]
[1736488695096,0.21258965,94100.0,94091.0,0.01159208]
[1736488696463,0.21258965,94100.0,94092.0,0.10429976]
[1736488696464,4.865e-05,94100.0,94092.0,0.10429976]
[1736488696958,4.865e-05,94100.0,94093.0,0.00557598]
[1736488697196,0.02232568,94099.0,94093.0,0.10987574]
[1736488698349,0.02232568,94099.0,94093.0,0.11487574]
[1736488698563,0.02232568,94099.0,94093.0,0.11587574]
[1736488698767,0.212542,94099.0,94093.0,0.11587574]
[1736488700958,4.865e-05,94100.0,94093.0,0.11587574]
[1736488701179,0.21258965,94100.0,94093.0,0.01157598]
[1736488701612,0.21258965,94100.0,94093.0,0.006]
[1736488702491,4.865e-05,94100.0,94093.0,0.006]
[1736488702700,4.865e-05,94100.0,94095.0,0.0465]
[1736488702912,4.865e-05,94100.0,94096.0,0.10429976]
[1736488703114,4.865e-05,94100.0,94096.0,0.10987656]
[1736488703578,4.865e-05,94100.0,94098.0,0.023]
[1736488703788,4.865e-05,94100.0,94099.0,0.12836236]
[1736488703998,4.865e-05,94100.0,94099.0,0.13393717]
[1736488704431,4.865e-05,94100.0,94099.0,0.57719307]
[1736488704651,4.865e-05,94100.0,94099.0,0.57613047]
[1736488704864,4.865e-05,94100.0,94099.0,0.68811023]
[1736488705076,4.865e-05,94100.0,94099.0,0.69011023]
[1736488705293,4.865e-05,94100.0,94099.0,0.58581047]
[1736488706333,4.865e-05,94100.0,94099.0,0.58381047]
[1736488706538,4.865e-05,94100.0,94099.0,0.59881047]
[1736488706913,4.865e-05,94100.0,94099.0,0.58981047]
[1736488707113,4.865e-05,94100.0,94099.0,0.59881047]
[1736488707977,4.865e-05,94100.0,94099.0,0.69881047]
[1736488708327,4.865e-05,94100.0,94099.0,0.71178115]
[1736488709367,4.865e-05,94100.0,94099.0,0.72221577]
[1736488709570,4.865e-05,94100.0,94099.0,1.16151047]
[1736488709782,4.865e-05,94100.0,94099.0,1.06151047]
[1736488710223,4.865e-05,94100.0,94099.0,1.16151047]
[1736488710433,4.865e-05,94100.0,94099.0,1.06151047]
[1736488711075,4.865e-05,94100.0,94099.0,1.16151047]
[1736488717161,4.865e-05,94100.0,94099.0,1.06151047]
[1736488718753,4.865e-05,94100.0,94099.0,1.05383047]
[1736488718957,4.865e-05,94100.0,94099.0,1.15383047]
[1736488728059,4.865e-05,94100.0,94099.0,1.15291561]
[1736488733178,4.865e-05,94100.0,94099.0,1.25721537]
[1736488735858,4.865e-05,94100.0,94099.0,1.15291561]
[1736488757131,4.865e-05,94100.0,94099.0,1.16059561]
[1736488760493,4.865e-05,94100.0,94099.0,1.07989561]
[1736488762051,4.865e-05,94100.0,94099.0,1.03019561]
[1736488764935,4.865e-05,94100.0,94099.0,0.93019561]
[1736488766613,4.865e-05,94100.0,94099.0,0.46749561]
[1736488767703,4.865e-05,94100.0,94099.0,0.46149561]
[1736488767889,4.865e-05,94100.0,94099.0,0.46749561]
[1736488768137,4.865e-05,94100.0,94099.0,0.45849561]
[1736488768570,4.865e-05,94100.0,94099.0,0.46149561]
[1736488768757,4.865e-05,94100.0,94099.0,0.46749561]
[1736488769268,4.865e-05,94100.0,94099.0,0.45249561]
[1736488769603,4.865e-05,94100.0,94099.0,0.46749561]
[1736488769809,4.865e-05,94100.0,94099.0,0.45849561]
[1736488771194,4.865e-05,94100.0,94099.0,0.45249561]
[1736488771322,4.865e-05,94100.0,94099.0,0.45699561]
[1736488771862,4.865e-05,94100.0,94099.0,0.46299561]
[1736488774564,4.865e-05,94100.0,94099.0,0.45531561]
[1736488778911,4.865e-05,94100.0,94099.0,0.55961537]
[1736488779133,4.865e-05,94100.0,94099.0,0.58843652]
[1736488779338,4.865e-05,94100.0,94099.0,0.66503652]
[1736488781068,4.865e-05,94100.0,94099.0,0.65903652]
[1736488781473,4.865e-05,94100.0,94099.0,0.67403652]
[1736488781623,4.865e-05,94100.0,94099.0,1.18383652]
[1736488781829,4.865e-05,94100.0,94099.0,1.36413628]
[1736488782048,4.865e-05,94100.0,94099.0,1.37313628]
[1736488782257,4.865e-05,94100.0,94099.0,1.37913628]
[1736488782459,4.865e-05,94100.0,94099.0,1.37013628]
[1736488782655,4.865e-05,94100.0,94099.0,1.37313628]
[1736488783101,4.865e-05,94100.0,94099.0,1.38013628]
[1736488784294,4.865e-05,94100.0,94099.0,1.36413628]
[1736488784500,4.865e-05,94100.0,94099.0,1.37313628]
[1736488784729,4.865e-05,94100.0,94099.0,1.38013628]
[1736488787232,4.865e-05,94100.0,94099.0,1.53013628]
[1736488787432,4.865e-05,94100.0,94099.0,1.52313628]
[1736488787855,4.865e-05,94100.0,94099.0,1.52113628]
[1736488788085,4.865e-05,94100.0,94099.0,1.53013628]
[1736488788299,4.865e-05,94100.0,94099.0,1.52313628]
[1736488788510,4.865e-05,94100.0,94099.0,1.52113628]
[1736488788725,4.865e-05,94100.0,94099.0,1.53013628]
[1736488788916,4.865e-05,94100.0,94099.0,1.52113628]
[1736488789122,4.865e-05,94100.0,94099.0,1.51413628]
[1736488789324,4.865e-05,94100.0,94099.0,1.53113628]
[1736488789689,4.865e-05,94100.0,94099.0,1.57372028]
[1736488790802,4.865e-05,94100.0,94099.0,1.56572028]
[1736488791012,4.865e-05,94100.0,94099.0,1.57472028]
[1736488791212,4.865e-05,94100.0,94099.0,1.56572028]
[1736488791669,4.865e-05,94100.0,94099.0,1.57472028]
[1736488791855,4.865e-05,94100.0,94099.0,1.56572028]
[1736488792054,4.865e-05,94100.0,94099.0,1.57472028]
[1736488793418,0.08,94137.0,94132.0,0.212466]
[1736488793624,0.08004888,94137.0,94133.0,0.14960855]
[1736488793855,0.08004888,94137.0,94135.0,0.023]
[1736488794054,0.08004888,94137.0,94136.0,0.12729976]
[1736488794308,0.08004888,94137.0,94136.0,0.132733]
[1736488795381,0.08004888,94137.0,94136.0,0.136733]
[1736488795589,0.08004888,94137.0,94136.0,0.145733]
[1736488795797,0.08004888,94137.0,94136.0,0.22193819]
[1736488796397,0.08004888,94137.0,94136.0,0.145733]
[1736488797476,4.888e-05,94137.0,94136.0,0.145733]
[1736488799374,4.888e-05,94137.0,94136.0,0.4585889]
[1736488814787,4.888e-05,94137.0,94136.0,0.4495889]
[1736488815212,4.888e-05,94137.0,94136.0,0.4585889]
[1736488815425,4.888e-05,94137.0,94136.0,0.4495889]
[1736488815644,4.888e-05,94137.0,94136.0,0.4455889]
[1736488815857,4.888e-05,94137.0,94136.0,0.4225889]
[1736488816067,0.07714888,94137.0,94136.0,0.32228914]
[1736488816268,0.07714888,94137.0,94136.0,0.33128914]
[1736488816493,0.07714888,94137.0,94136.0,0.32728914]
[1736488816706,0.07714888,94137.0,94136.0,0.33128914]
[1736488817357,0.07714888,94137.0,94136.0,0.32728914]
[1736488817578,0.07714888,94137.0,94136.0,0.33128914]
[1736488817807,0.07714888,94137.0,94136.0,0.32228914]
[1736488818049,0.07714888,94137.0,94136.0,0.33128914]
[1736488818444,0.08759332,94137.0,94136.0,0.32228914]
[1736488818665,0.08759332,94137.0,94136.0,0.33128914]
[1736488822206,0.07714888,94137.0,94136.0,0.33128914]
[1736488822445,4.888e-05,94137.0,94136.0,0.4585889]
[1736488824214,4.888e-05,94137.0,94136.0,1.3648469]
[1736488824416,4.888e-05,94137.0,94136.0,1.6148469]
[1736488824622,4.888e-05,94137.0,94136.0,1.6478376]
[1736488825052,4.888e-05,94137.0,94136.0,1.6388376]
[1736488825269,4.888e-05,94137.0,94136.0,1.6438376]
[1736488825469,4.888e-05,94137.0,94136.0,1.75213736]
[1736488825678,4.888e-05,94137.0,94136.0,1.77537731]
[1736488825881,4.888e-05,94137.0,94136.0,1.78437731]
[1736488826114,4.888e-05,94137.0,94136.0,1.78037731]
[1736488826515,4.888e-05,94137.0,94136.0,1.75438661]
[1736488827257,4.888e-05,94137.0,94136.0,1.7873534]
[1736488827674,4.888e-05,94137.0,94136.0,1.75438661]
[1736488828489,4.888e-05,94137.0,94136.0,1.55008685]
[1736488828688,4.888e-05,94137.0,94136.0,1.65008685]
[1736488835722,4.888e-05,94137.0,94136.0,1.55008685]
[1736488837471,4.888e-05,94137.0,94136.0,1.65008685]
[1736488837691,4.888e-05,94137.0,94136.0,1.31758685]
[1736488837894,4.888e-05,94137.0,94136.0,1.32522685]
[1736488838080,4.888e-05,94137.0,94136.0,1.42522685]
[1736488838561,4.888e-05,94137.0,94136.0,1.41464123]
[1736488838879,9.727e-05,94161.0,94141.0,0.1]
[1736488839140,0.00058602,94161.0,94150.0,0.023]
[1736488839329,0.00058602,94161.0,94152.0,0.023]
[1736488839566,0.01101345,94161.0,94154.0,0.023]
[1736488839761,0.01101345,94161.0,94156.0,0.023]
[1736488839907,0.00058602,94161.0,94158.0,0.023]
[1736488840121,0.00058602,94161.0,94160.0,0.023]
[1736488840329,0.00058602,94161.0,94160.0,0.12729976]
[1736488840692,0.00058602,94161.0,94160.0,0.13260994]
[1736488841746,0.01104849,94161.0,94160.0,0.00531018]
[1736488841960,0.28964849,94161.0,94160.0,0.012]
[1736488842174,0.27918602,94161.0,94160.0,0.012]
[1736488842600,0.27918602,94161.0,94160.0,0.009]
[1736488843489,0.212423,94152.0,94132.0,0.023]
[1736488843771,0.0828,94151.0,94134.0,0.023]
[1736488843995,0.0828,94151.0,94136.0,0.023]
[1736488844263,0.0828,94151.0,94138.0,0.023]
[1736488844451,0.0828,94151.0,94140.0,0.023]
[1736488844703,0.0828,94151.0,94142.0,0.023]
[1736488845370,0.09348271,94151.0,94142.0,0.023]
[1736488845897,0.35149868,94151.0,94142.0,0.023]
[1736488846170,0.35149868,94151.0,94142.0,0.024]
[1736488846431,0.13907268,94151.0,94142.0,0.024]
[1736488846919,0.09348271,94151.0,94142.0,0.024]
[1736488847174,0.09348271,94151.0,94142.0,0.029]
[1736488847376,0.09348271,94151.0,94142.0,0.023]
[1736488847658,0.09348271,94151.0,94142.0,0.028]
[1736488847855,0.09348271,94151.0,94142.0,0.029]
[1736488848718,0.09348271,94151.0,94142.0,0.028]
[1736488849037,0.09348271,94151.0,94142.0,0.029]
[1736488849708,0.0828,94151.0,94143.0,0.01332998]
[1736488849921,0.0828,94151.0,94143.0,0.01870588]
[1736488850472,0.0828,94151.0,94144.0,0.12729976]
[1736488850692,0.081,94158.0,94146.0,0.235436]
[1736488850950,0.081,94158.0,94148.0,0.023]
[1736488851165,0.00058602,94161.0,94150.0,0.023]
[1736488851472,0.00058602,94161.0,94154.0,0.023]
[1736488851859,0.00058602,94161.0,94156.0,0.023]
[1736488852099,0.00058602,94161.0,94158.0,0.023]
[1736488852309,0.00058602,94161.0,94160.0,0.023]
[1736488852473,0.00058602,94161.0,94160.0,0.12729976]
[1736488852760,0.00058602,94161.0,94160.0,0.13267759]
[1736488853527,0.07818602,94161.0,94160.0,0.01437783]
[1736488853767,0.07818602,94161.0,94160.0,0.009]
[1736488854465,0.07818602,94161.0,94158.0,0.002]
[1736488854670,0.07818602,94161.0,94160.0,0.004]
[1736488854873,0.07818602,94161.0,94160.0,0.005]
[1736488855311,0.07818602,94161.0,94160.0,0.004]
[1736488856074,0.07818602,94161.0,94158.0,0.001]
[1736488856267,0.07818602,94161.0,94159.0,0.00535612]
[1736488856470,0.07818602,94161.0,94160.0,0.004]
[1736488856696,0.00058602,94161.0,94160.0,0.004]
[1736488857107,0.15085522,94168.0,94160.0,0.004]
[1736488857274,0.0499,94165.0,94160.0,6.206e-05]
[1736488857949,0.0499,94165.0,94160.0,0.00106206]
[1736488858152,0.0499,94165.0,94160.0,0.00506206]
[1736488858358,0.0499,94165.0,94160.0,0.00406206]
[1736488858767,0.29139,94166.0,94160.0,0.00406206]
[1736488859885,0.079,94166.0,94160.0,6.206e-05]
[1736488860487,0.079,94166.0,94160.0,0.00206206]
[1736488861047,0.079,94166.0,94160.0,6.206e-05]
[1736488861708,0.079,94166.0,94160.0,0.00206206]
[1736488862396,0.0768,94173.0,94162.0,0.023]
[1736488862608,0.0768,94173.0,94162.0,0.10429976]
[1736488862855,0.0768,94173.0,94163.0,0.00534097]
[1736488863306,0.0001704,94175.0,94164.0,0.11547004]
[1736488863738,0.0001704,94175.0,94164.0,0.10964007]
[1736488864613,0.0001704,94175.0,94164.0,0.11464007]
[1736488864825,0.0001704,94175.0,94164.0,0.11564007]
[1736488867797,0.212372,94174.0,94164.0,0.11564007]
[1736488868009,0.212372,94174.0,94164.0,0.01134031]
[1736488868434,0.212372,94174.0,94164.0,0.005]
[1736488868670,0.212372,94174.0,94165.0,0.00532821]
[1736488868880,0.212372,94174.0,94164.0,0.005]
[1736488869080,0.212372,94174.0,94165.0,0.00532821]
[1736488869324,0.212372,94174.0,94160.0,6.206e-05]
[1736488869526,0.212372,94174.0,94166.0,0.00532755]
[1736488869705,0.212372,94174.0,94164.0,0.002]
[1736488869907,0.212372,94174.0,94167.0,0.00532689]
[1736488870111,0.212372,94174.0,94160.0,0.10436182]
[1736488870112,0.0001704,94175.0,94164.0,0.10629976]
[1736488870359,0.0001704,94175.0,94168.0,0.00532623]
[1736488870558,0.0001704,94175.0,94164.0,0.10429976]
[1736488870710,0.0001704,94175.0,94169.0,0.00532557]
[1736488870939,0.0001704,94175.0,94166.0,0.002]
[1736488871138,0.0001704,94175.0,94170.0,0.00532491]
[1736488871340,0.0001704,94175.0,94167.0,0.10429976]
[1736488871519,0.0001704,94175.0,94171.0,0.00532425]
[1736488871731,0.0001704,94175.0,94168.0,0.01586196]
[1736488871732,0.0001704,94175.0,94167.0,0.10429976]
[1736488871937,0.0001704,94175.0,94172.0,0.00532359]
[1736488872154,0.0001704,94175.0,94167.0,0.10429976]
[1736488872366,0.0001704,94175.0,94173.0,0.00532293]
[1736488872565,0.0001704,94175.0,94167.0,0.10429976]
[1736488872811,0.0001704,94175.0,94174.0,0.00530452]
[1736488873026,0.0001704,94175.0,94169.0,0.048]
[1736488873195,0.0001704,94175.0,94174.0,0.00530452]
[1736488873397,0.0001704,94175.0,94169.0,0.15229976]
[1736488873620,0.0001704,94175.0,94174.0,0.00530452]
[1736488874234,0.0001704,94175.0,94172.0,0.001]
[1736488874410,0.0001704,94175.0,94174.0,0.01030452]
[1736488874562,0.0001704,94175.0,94174.0,0.005]
[1736488874775,0.0001704,94175.0,94174.0,0.01030452]
[1736488876851,0.0001704,94175.0,94174.0,0.01130452]
[1736488879019,0.0001704,94175.0,94174.0,0.11560428]
[1736488879230,0.0001704,94175.0,94174.0,0.11666613]
[1736488879437,0.0001704,94175.0,94174.0,0.13966613]
[1736488880300,0.0001704,94175.0,94174.0,0.13366613]
[1736488880713,0.0001704,94175.0,94174.0,0.14366613]
[1736488880923,0.0001704,94175.0,94174.0,0.13466613]
[1736488881047,0.0001704,94175.0,94174.0,0.13366613]
[1736488881276,0.0001704,94175.0,94174.0,0.14766613]
[1736488882587,0.0001704,94175.0,94174.0,0.25058113]
[1736488882827,0.0001704,94175.0,94174.0,0.24051928]
[1736488883037,0.0001704,94175.0,94174.0,0.78867518]
[1736488883284,0.0001704,94175.0,94174.0,1.24637518]
[1736488883510,0.0001704,94175.0,94174.0,1.24137518]
[1736488883722,0.0001704,94175.0,94174.0,1.25037518]
[1736488883958,0.0001704,94175.0,94174.0,1.23737518]
[1736488884411,0.0001704,94175.0,94174.0,1.25137518]
[1736488885048,0.0001704,94175.0,94174.0,1.24637518]
[1736488885911,0.0001704,94175.0,94174.0,1.23737518]
[1736488886328,0.0001704,94175.0,94174.0,1.24637518]
[1736488886509,0.0001704,94175.0,94174.0,1.25237518]
[1736488887121,0.00706873,94209.0,94184.0,0.1]
[1736488887276,0.15,94210.0,94194.0,0.3128559]
[1736488887475,0.15,94210.0,94195.0,0.10955449]
[1736488888341,0.01061479,94211.0,94196.0,0.0478]
[1736488888597,0.15,94214.0,94197.0,0.10429976]
[1736488888937,0.15,94214.0,94198.0,0.09036253]
[1736488889158,0.15,94214.0,94199.0,0.10429976]
[1736488889318,0.15,94214.0,94199.0,0.10953155]
[1736488889593,0.01068116,94213.0,94199.0,0.10953155]
[1736488889837,0.212287,94212.0,94199.0,0.10953155]
[1736488890685,0.212287,94212.0,94199.0,0.00523179]
[1736488890686,0.212307,94203.0,94199.0,0.00523179]
[1736488890895,0.212311,94201.0,94195.0,6.206e-05]
[1736488891094,0.424624,94201.0,94196.0,0.0051889]
[1736488891311,0.212311,94201.0,94196.0,0.0051889]
[1736488891714,0.0764,94202.0,94197.0,0.13611045]
[1736488891922,0.438691,94210.0,94197.0,0.14130278]
[1736488892767,0.424605,94205.0,94197.0,0.00519233]
[1736488892978,0.212314,94200.0,94199.0,0.001]
[1736488893189,0.443714,94200.0,94199.0,0.001]
[1736488893429,0.443714,94200.0,94199.0,0.00619447]
[1736488893898,0.443714,94200.0,94199.0,0.00519447]
[1736488894157,0.362318,94198.0,94197.0,0.003]
[1736488894350,0.362318,94198.0,94195.0,6.206e-05]
[1736488894604,0.4115498,94198.0,94195.0,6.206e-05]
[1736488895018,0.15,94197.0,94195.0,6.206e-05]
[1736488895229,0.441223,94196.0,94195.0,6.206e-05]
[1736488896709,0.587423,94196.0,94195.0,6.206e-05]
[1736488896921,0.487423,94196.0,94195.0,6.206e-05]
[1736488897121,0.49804587,94196.0,94195.0,6.206e-05]
[1736488901409,0.45184587,94196.0,94195.0,6.206e-05]
[1736488903462,0.37294587,94196.0,94195.0,6.206e-05]
[1736488903673,0.15,94196.0,94195.0,6.206e-05]
[1736488903880,0.212309,94202.0,94195.0,6.206e-05]
[1736488903881,0.192309,94202.0,94195.0,6.206e-05]
[1736488904557,0.212291,94210.0,94195.0,0.10436182]
[1736488904755,0.212291,94210.0,94196.0,0.11998579]
[1736488904966,0.01061899,94211.0,94196.0,0.11998579]
[1736488905196,0.212291,94210.0,94196.0,0.10954961]
[1736488905609,0.15,94209.0,94196.0,0.10954961]
[1736488906024,0.15,94209.0,94196.0,0.11054961]
[1736488906449,0.212296,94208.0,94196.0,0.11054961]
[1736488906656,0.0001704,94213.0,94196.0,0.11054961]
[1736488906866,0.0001704,94213.0,94196.0,0.10954961]
[1736488907084,0.1501704,94213.0,94196.0,0.10954961]
[1736488907964,0.0001704,94213.0,94197.0,0.0798615]
[1736488908197,0.0001704,94213.0,94198.0,0.10429976]
[1736488908439,0.0001704,94213.0,94199.0,0.04935215]
[1736488908620,0.0001704,94213.0,94200.0,0.10429976]
[1736488908825,0.0001704,94213.0,94200.0,0.10954696]
[1736488910346,0.0001704,94213.0,94200.0,0.42240286]
[1736488913014,0.212287,94212.0,94200.0,0.42240286]
[1736488913247,0.00044362,94212.0,94200.0,0.42240286]
[1736488913525,0.212291,94211.0,94200.0,0.42240286]
[1736488913764,0.212291,94211.0,94200.0,0.47826335]
[1736488913952,0.212291,94211.0,94200.0,0.42240286]
[1736488914696,0.0001704,94213.0,94200.0,0.42240286]
[1736488914946,0.212287,94212.0,94200.0,0.42240286]
[1736488915418,0.0001704,94213.0,94200.0,0.42240286]
[1736488915859,0.0001704,94213.0,94201.0,0.1286]
[1736488916094,0.0001704,94213.0,94202.0,0.10429976]
[1736488916333,0.0001704,94213.0,94202.0,0.10951215]
[1736488920244,0.212305,94205.0,94202.0,0.00521239]
[1736488920708,0.212305,94205.0,94200.0,0.3128559]
[1736488921692,0.42461,94205.0,94200.0,0.3128559]
[1736488921913,0.15,94202.0,94200.0,0.3128559]
[1736488922340,0.212323,94196.0,94195.0,6.206e-05]
[1736488924933,0.362323,94196.0,94195.0,6.206e-05]
[1736488925344,0.362323,94196.0,94195.0,0.00206206]
[1736488929323,0.37578007,94196.0,94195.0,0.00206206]
[1736488929524,0.16345707,94196.0,94195.0,0.00206206]
[1736488931013,0.16345707,94196.0,94195.0,6.206e-05]
[1736488931850,0.16345707,94196.0,94195.0,0.00206206]
[1736488932083,0.16345707,94196.0,94195.0,6.206e-05]
[1736488932519,0.16345707,94196.0,94195.0,0.00206206]
[1736488935357,0.16345707,94196.0,94195.0,6.206e-05]
[1736488935769,0.16345707,94196.0,94195.0,0.00206206]
[1736488941948,0.24395707,94196.0,94195.0,0.00206206]
[1736488942163,0.24442552,94196.0,94195.0,0.00206206]
[1736488942388,0.24395707,94196.0,94195.0,6.206e-05]
[1736488942837,0.24395707,94196.0,94195.0,0.00206206]
[1736488943063,0.24395707,94196.0,94195.0,6.206e-05]
[1736488945320,0.16345707,94196.0,94195.0,6.206e-05]
[1736488946094,0.01345707,94196.0,94195.0,6.206e-05]
[1736488946371,0.212322,94197.0,94195.0,6.206e-05]
[1736488947741,0.212311,94201.0,94195.0,6.206e-05]
[1736488947742,0.15,94196.0,94195.0,6.206e-05]
[1736488948602,0.212311,94201.0,94195.0,6.206e-05]
[1736488949060,0.15,94200.0,94195.0,6.206e-05]
[1736488949272,0.15,94200.0,94195.0,0.00506206]
[1736488949686,0.15,94200.0,94195.0,0.00106206]
[1736488949916,0.15,94200.0,94195.0,6.206e-05]
[1736488950186,0.01622711,94201.0,94195.0,6.206e-05]
[1736488950585,0.15,94201.0,94195.0,6.206e-05]
[1736488950760,0.15,94201.0,94195.0,0.00206206]
[1736488951736,0.15,94201.0,94195.0,6.206e-05]
[1736488952171,0.15,94201.0,94195.0,0.00206206]
[1736488952365,0.15,94201.0,94195.0,6.206e-05]
[1736488952571,0.15,94201.0,94195.0,0.00106206]
[1736488952822,0.15,94201.0,94195.0,0.00606206]
[1736488953434,0.212314,94200.0,94195.0,0.00606206]
[1736488954591,0.212314,94200.0,94195.0,0.00506206]
[1736488954898,0.212314,94200.0,94195.0,6.206e-05]
[1736488955112,0.212314,94200.0,94195.0,0.00106206]
[1736488955251,0.212314,94200.0,94195.0,0.00606206]
[1736488955461,0.22869633,94200.0,94195.0,0.00606206]
[1736488956283,0.212314,94200.0,94195.0,0.00606206]
[1736488959096,0.212314,94200.0,94195.0,6.206e-05]
[1736488959097,0.15,94199.0,94195.0,6.206e-05]
[1736488959294,0.15,94199.0,94195.0,0.00306206]
[1736488959535,0.15,94197.0,94195.0,0.00306206]
[1736488960059,0.15,94197.0,94195.0,6.206e-05]
[1736488960890,0.212314,94200.0,94195.0,6.206e-05]
[1736488960891,0.4197862,94196.0,94195.0,6.206e-05]
[1736488961503,0.4197862,94196.0,94195.0,0.00306206]
[1736488961711,0.4197862,94196.0,94195.0,0.00106206]
[1736488962596,0.4197862,94196.0,94195.0,6.206e-05]
[1736488962936,0.362323,94196.0,94195.0,6.206e-05]
[1736488968497,0.38392122,94196.0,94195.0,6.206e-05]
[1736488971196,0.362323,94196.0,94195.0,6.206e-05]
[1736488971720,0.15,94196.0,94195.0,6.206e-05]
[1736488972080,0.15,94196.0,94195.0,0.00408198]
[1736488972284,0.15,94196.0,94195.0,6.206e-05]
[1736488973156,0.15,94196.0,94195.0,0.00206206]
[1736488974456,0.15,94196.0,94195.0,6.206e-05]
[1736488974644,0.15,94196.0,94195.0,0.00506206]
[1736488975577,0.15,94196.0,94195.0,0.00406206]
[1736488976091,0.15,94196.0,94195.0,6.206e-05]
[1736488976316,0.15,94196.0,94195.0,0.00406206]
[1736488977089,0.362323,94196.0,94195.0,0.00506206]
[1736488977524,0.362323,94196.0,94195.0,0.00406206]
[1736488977759,0.362323,94196.0,94195.0,0.00106206]
[1736488977972,0.362323,94196.0,94195.0,0.00506206]
[1736488978211,0.362323,94196.0,94195.0,6.206e-05]
[1736488978705,0.362323,94196.0,94195.0,0.00306206]
[1736488979342,0.362323,94196.0,94195.0,6.206e-05]
[1736488979586,0.362323,94196.0,94195.0,0.00306206]
[1736488980035,0.15,94196.0,94195.0,0.00306206]
[1736488980241,0.15,94196.0,94195.0,0.00708198]
[1736488980907,0.15,94196.0,94195.0,0.00408198]
[1736488981107,0.15,94196.0,94195.0,0.00608198]
[1736488981541,0.15,94196.0,94195.0,0.00408198]
[1736488982239,0.15,94196.0,94195.0,0.00708198]
[1736488984237,0.15,94196.0,94195.0,0.00306206]
[1736488984666,0.2074634,94196.0,94195.0,0.00306206]
[1736488984878,0.15,94196.0,94195.0,6.206e-05]
[1736488985523,0.15,94196.0,94195.0,0.00306206]
[1736488985782,0.15,94196.0,94195.0,6.206e-05]
[1736488986228,0.15047584,94196.0,94195.0,0.00306206]
[1736488987344,0.23067777,94196.0,94195.0,0.00306206]
[1736488987546,0.23067777,94196.0,94195.0,6.206e-05]
[1736488987708,0.23067777,94196.0,94195.0,0.00306206]
[1736488988089,0.23067777,94196.0,94195.0,6.206e-05]
[1736488989125,0.23067777,94196.0,94162.0,0.125]
[1736488989126,0.212387,94168.0,94162.0,0.0479]